bitfinex/quotes_ETHUSD_20230116
["timestamp","ask_amount","ask_price","bid_price","bid_amount"]
[1673857892806,0.487,1541.0,1540.7,3.27278678]
[1673857893065,19.46913,1540.9,1540.6,2.756379]
[1673857893216,0.4871,1540.8,1540.6,0.00742]
[1673857893431,6.49055,1540.7,1540.6,0.00742]
[1673857893832,6.97734,1540.8,1540.6,0.00742]
[1673857894041,0.4871,1540.8,1540.6,3.28020678]
[1673857894393,0.31140906,1540.7,1540.6,3.60822746]
[1673857894560,0.31140906,1540.7,1540.3,0.13833728]
[1673857894561,14.21850906,1540.7,1540.3,0.13833728]
[1673857894770,2.9872,1540.6,1540.3,0.13833728]
[1673857895028,22.47417,1540.5,1540.3,3.728e-05]
[1673857895240,0.4872,1540.4,1540.3,3.728e-05]
[1673857895395,15.766977,1540.4,1540.3,3.728e-05]
[1673857895604,16.41753018,1540.4,1540.3,3.728e-05]
[1673857895868,15.771191,1540.4,1540.3,3.728e-05]
[1673857896397,6.983234,1540.4,1540.3,3.728e-05]
[1673857896780,13.475054,1540.4,1540.3,3.728e-05]
[1673857897496,14.12139318,1540.4,1540.3,3.728e-05]
[1673857897965,16.62139318,1540.4,1540.3,3.728e-05]
[1673857898125,14.12139318,1540.4,1540.3,3.728e-05]
[1673857898334,17.1318525,1540.4,1540.3,3.728e-05]
[1673857898576,10.6400325,1540.4,1540.3,3.728e-05]
[1673857898793,13.6400325,1540.4,1540.3,3.728e-05]
[1673857899016,22.6318525,1540.4,1540.3,3.728e-05]
[1673857900180,22.6318525,1540.4,1540.2,0.00037456]
[1673857900181,24.6388525,1540.4,1540.2,0.00037456]
[1673857900488,20.74766525,1540.3,1540.2,0.00037456]
[1673857900681,21.23486525,1540.3,1540.2,0.00037456]
[1673857900893,21.88120443,1540.3,1540.2,0.00037456]
[1673857901065,25.15399121,1540.3,1540.1,0.00071184]
[1673857901282,5.02369912,1540.2,1540.1,0.00071184]
[1673857901617,21.6553583,1540.2,1540.1,0.00071184]
[1673857902032,24.1553583,1540.2,1540.1,0.00071184]
[1673857902750,27.42814508,1540.2,1540.1,0.00071184]
[1673857902964,2.5,1540.1,1539.9,0.13932046]
[1673857903291,2.5,1540.1,1539.9,4.6e-07]
[1673857903292,19.65042596,1540.0,1539.9,4.6e-07]
[1673857903501,19.65042596,1540.0,1539.6,0.14680703]
[1673857903715,6.14633918,1539.9,1539.6,0.14680703]
[1673857903956,19.62157918,1539.9,1539.6,0.14680703]
[1673857904155,9.98132,1539.9,1539.6,0.14680703]
[1673857904489,12.98784,1539.9,1539.6,0.14680703]
[1673857904873,14.984704,1539.9,1539.6,0.14680703]
[1673857905831,16.11844318,1539.9,1539.6,0.14680703]
[1673857906042,15.63104318,1539.9,1539.6,0.14680703]
[1673857906588,22.12496318,1539.9,1539.6,0.14680703]
[1673857906757,25.61236318,1539.9,1539.8,0.00023653]
[1673857906965,28.11236318,1539.9,1539.8,0.00023653]
[1673857907525,2.5,1539.8,1539.6,0.14680703]
[1673857907744,26.95214902,1539.8,1539.6,0.14680703]
[1673857907916,23.67936224,1539.8,1539.6,0.14680703]
[1673857908146,21.82570142,1539.8,1539.6,0.14680703]
[1673857909391,31.5928282,1539.8,1539.6,0.14680703]
[1673857909601,31.1054282,1539.8,1539.6,0.14680703]
[1673857909868,34.0928282,1539.8,1539.6,0.14680703]
[1673857910238,34.0970422,1539.8,1539.6,0.14680703]
[1673857910445,26.31304142,1539.8,1539.6,0.14680703]
[1673857910675,25.66670224,1539.8,1539.6,0.14680703]
[1673857911395,36.4228282,1539.8,1539.7,3.728e-05]
[1673857911605,2.5,1539.7,1539.6,0.14680703]
[1673857911810,31.01189603,1539.7,1539.6,0.14680703]
[1673857912057,31.65823521,1539.7,1539.6,0.14680703]
[1673857913072,2.5,1539.6,1539.4,0.14463028]
[1673857913287,25.986654,1539.5,1539.4,0.14463028]
[1673857913600,26.63299318,1539.5,1539.4,0.14463028]
[1673857913804,28.50205312,1539.5,1539.4,0.14463028]
[1673857914016,29.1483923,1539.5,1539.4,0.14463028]
[1673857914280,29.1483923,1539.5,1539.4,1.09463028]
[1673857914281,19.48683,1539.5,1539.4,1.09463028]
[1673857914641,19.48683,1539.5,1539.4,0.14463028]
[1673857917751,22.978544,1539.5,1539.4,0.14463028]
[1673857917961,13.482934,1539.5,1539.4,1.09463028]
[1673857918180,7.14185918,1539.6,1539.4,1.09463028]
[1673857918181,12.99104,1539.6,1539.4,1.20409331]
[1673857918392,19.48656,1539.6,1539.4,1.20409331]
[1673857918999,12.99104,1539.6,1539.4,1.20409331]
[1673857919434,19.48656,1539.6,1539.4,0.25409331]
[1673857919649,19.48656,1539.6,1539.4,0.14463028]
[1673857919894,3.0,1539.7,1539.4,3.41741706]
[1673857920083,15.98991,1539.7,1539.5,3.27278678]
[1673857920295,12.98991,1539.7,1539.5,3.27278678]
[1673857920516,6.49417,1539.9,1539.6,3.27278678]
[1673857920847,6.49314,1540.1,1539.7,3.60006546]
[1673857921055,6.4929,1540.2,1539.8,3.27278678]
[1673857921207,12.9858,1540.2,1539.8,3.27278678]
[1673857921670,12.9858,1540.2,1539.5,7.95081322]
[1673857921881,12.9858,1540.2,1537.7,76.06415279]
[1673857921882,2.007,1539.7,1539.2,0.14680703]
[1673857922051,19.97307,1539.6,1539.2,0.14680703]
[1673857922259,3.0,1539.5,1539.2,0.14680703]
[1673857922475,19.979804,1539.4,1539.2,0.14680703]
[1673857922681,4.9979804,1539.3,1539.2,0.14680703]
[1673857922893,18.4784804,1539.3,1539.2,0.14680703]
[1673857923224,21.62481958,1539.3,1539.2,0.14680703]
[1673857923436,12.64278918,1539.3,1539.2,0.14680703]
[1673857923655,10.14278918,1539.3,1539.2,0.14680703]
[1673857924837,10.63038918,1539.3,1539.2,0.14680703]
[1673857925728,12.996604,1539.4,1539.2,0.14680703]
[1673857925729,6.49603,1539.4,1539.2,1.09680703]
[1673857926045,6.49569,1539.5,1539.2,1.09680703]
[1673857926315,6.49569,1539.5,1539.2,1.22032089]
[1673857927330,6.49569,1539.5,1539.2,0.14680703]
[1673857928042,7.14202918,1539.5,1539.2,0.14680703]
[1673857928568,14.12521918,1539.5,1539.2,0.14680703]
[1673857929005,7.62952918,1539.5,1539.2,0.14680703]
[1673857929224,6.4953,1539.6,1539.2,0.14680703]
[1673857929563,6.49508,1539.7,1539.2,0.14680703]
[1673857929780,6.49508,1539.7,1539.2,0.6555007]
[1673857930099,6.49508,1539.7,1539.3,0.23]
[1673857930275,12.99016,1539.7,1539.3,0.23]
[1673857930994,6.49464,1539.8,1539.3,0.23]
[1673857931607,12.98928,1539.8,1539.3,0.23]
[1673857932004,12.993494,1539.8,1539.3,1.04872988]
[1673857932210,13.63983318,1539.8,1539.3,0.23]
[1673857932555,13.63983318,1539.8,1539.4,3.27278678]
[1673857932875,12.993494,1539.8,1539.5,3.27278678]
[1673857933144,12.993494,1539.8,1539.4,0.02615872]
[1673857933308,4.29858,1540.1,1539.6,3.27278678]
[1673857933309,6.49342,1540.1,1539.6,3.27278678]
[1673857933509,6.49342,1540.1,1539.7,3.83006546]
[1673857933715,6.49342,1540.1,1539.8,3.27278678]
[1673857934135,6.49287,1540.2,1539.9,3.27278678]
[1673857934340,6.55954193,1540.4,1540.0,3.50278678]
[1673857934613,6.55954193,1540.4,1540.1,3.27278678]
[1673857935129,13.05167193,1540.4,1539.8,11.1559]
[1673857935294,13.05167193,1540.4,1539.9,3.27278678]
[1673857935500,13.05167193,1540.4,1540.0,3.27278678]
[1673857937316,0.004214,1540.3,1539.6,3.0]
[1673857937508,4.30938119,1540.3,1539.6,3.27278678]
[1673857937742,25.97248,1540.1,1539.2,2.7805007]
[1673857937917,3.4873,1540.0,1539.2,20.3632007]
[1673857938133,19.48353,1539.8,1539.2,20.3632007]
[1673857938424,19.97093,1539.8,1539.2,12.2310007]
[1673857939009,20.61726918,1539.8,1539.2,14.99509381]
[1673857939271,0.004214,1539.7,1539.2,14.99509381]
[1673857939591,19.48605,1539.6,1539.2,14.99509381]
[1673857939817,19.48605,1539.6,1539.2,3.41959381]
[1673857940267,19.97355,1539.6,1539.2,3.41959381]
[1673857940475,22.03596032,1539.6,1539.2,0.14680703]
[1673857940783,22.6822995,1539.6,1539.2,0.14680703]
[1673857941845,3.0,1539.5,1539.2,0.14680703]
[1673857942111,25.98412,1539.4,1539.2,0.14680703]
[1673857942441,13.4805,1539.3,1539.2,0.14680703]
[1673857942599,22.3387291,1539.3,1539.2,0.14680703]
[1673857942813,19.8387291,1539.3,1539.2,0.14680703]
[1673857943686,6.98405,1539.3,1539.2,2.02280703]
[1673857944030,6.49603,1539.4,1539.2,1.09680703]
[1673857944201,12.99232,1539.4,1539.2,1.09680703]
[1673857944413,6.49603,1539.4,1539.2,1.09680703]
[1673857944942,12.99232,1539.4,1539.2,1.09680703]
[1673857946282,19.48861,1539.4,1539.2,1.09680703]
[1673857946951,19.48861,1539.4,1539.2,0.14680703]
[1673857947111,0.004214,1539.3,1539.2,0.14680703]
[1673857947338,0.930214,1539.3,1539.2,0.14680703]
[1673857947681,20.419564,1539.3,1539.2,0.14680703]
[1673857948553,19.493564,1539.3,1539.2,1.09680703]
[1673857948746,12.9929,1539.3,1539.2,1.09680703]
[1673857948884,12.9929,1539.3,1539.2,0.14680703]
[1673857949521,12.9929,1539.3,1539.2,1.09680703]
[1673857950020,12.9929,1539.3,1539.2,0.14680703]
[1673857950166,12.9929,1539.3,1539.2,1.09680703]
[1673857951148,6.49603,1539.4,1539.2,4.49310767]
[1673857951320,6.49592,1539.5,1539.3,3.50278678]
[1673857951974,6.49592,1539.5,1539.3,0.23]
[1673857952183,12.99148,1539.5,1539.3,3.50278678]
[1673857952410,6.49539,1539.6,1539.3,3.50278678]
[1673857952625,6.49539,1539.6,1539.4,0.35027868]
[1673857953867,6.49411,1539.9,1539.5,3.27278678]
[1673857954083,6.4931,1540.1,1539.6,3.27278678]
[1673857954404,12.98652,1540.1,1539.7,3.27278678]
[1673857954719,6.49274,1540.2,1539.8,0.32727868]
[1673857955123,12.98548,1540.2,1539.8,0.32727868]
[1673857955679,12.98548,1540.2,1539.8,3.60006546]
[1673857958181,19.47822,1540.2,1539.8,3.60006546]
[1673857958358,19.47822,1540.2,1539.9,3.63279333]
[1673857958786,19.47822,1540.2,1539.9,3.27278678]
[1673857960602,12.98548,1540.2,1540.0,3.27278678]
[1673857960814,13.53872193,1540.4,1540.1,3.27278678]
[1673857961079,7.04663193,1540.4,1540.2,3.27278678]
[1673857961246,6.55943193,1540.4,1540.2,3.27278678]
[1673857962053,6.55943193,1540.4,1539.9,8.58362]
[1673857962401,19.54329193,1540.4,1540.0,3.50278678]
[1673857962777,19.54329193,1540.4,1540.0,3.49566365]
[1673857962981,19.54329193,1540.4,1540.0,3.46470019]
[1673857964506,19.54750593,1540.4,1540.0,3.46470019]
[1673857965879,13.05546593,1540.4,1540.0,3.46470019]
[1673857966089,6.56348593,1540.4,1540.1,0.34647002]
[1673857966469,13.05552593,1540.4,1540.1,0.34647002]
[1673857967444,13.05552593,1540.4,1540.1,3.6192568]
[1673857967873,13.05552593,1540.4,1540.1,2.6192568]
[1673857968226,13.05552593,1540.4,1540.1,2.90418248]
[1673857968701,13.05552593,1540.4,1540.1,2.6192568]
[1673857968820,19.54756593,1540.4,1540.1,2.6192568]
[1673857969381,13.05552593,1540.4,1540.1,2.6192568]
[1673857971072,6.56348593,1540.4,1540.2,3.27278678]
[1673857971289,6.55927193,1540.4,1540.2,3.27278678]
[1673857972611,0.06745193,1540.4,1540.2,3.27278678]
[1673857973629,6.55934193,1540.4,1540.2,3.27278678]
[1673857973838,7.86444412,1540.4,1540.2,3.27278678]
[1673857974046,6.55934193,1540.4,1540.2,3.27278678]
[1673857974443,0.06745193,1540.4,1540.3,3.50278678]
[1673857974639,0.06745193,1540.4,1540.3,9.99502678]
[1673857974854,0.06745193,1540.4,1540.3,16.48726678]
[1673857975364,0.06745193,1540.4,1540.3,22.97950678]
[1673857975632,0.06745193,1540.4,1540.3,25.92672046]
[1673857977773,0.06745193,1540.4,1540.3,19.43448046]
[1673857978581,0.06745193,1540.4,1540.3,25.92672046]
[1673857979185,0.06745193,1540.4,1540.3,12.94224046]
[1673857979417,0.06745193,1540.4,1540.3,9.99502678]
[1673857980249,0.06745193,1540.4,1540.3,3.50278678]
[1673857980869,0.06745193,1540.4,1540.3,3.27278678]
[1673857981594,0.06745193,1540.4,1540.3,9.76502678]
[1673857981998,0.06745193,1540.4,1540.3,16.25726678]
[1673857982365,0.06745193,1540.4,1540.3,25.25445846]
[1673857982533,0.06745193,1540.4,1540.3,18.76221846]
[1673857982737,0.06745193,1540.4,1540.3,12.26997846]
[1673857982966,0.06745193,1540.4,1540.3,9.99502678]
[1673857984503,0.06745193,1540.4,1540.3,22.97950678]
[1673857985763,0.06745193,1540.4,1540.3,25.97950678]
[1673857987966,0.06745193,1540.4,1540.3,19.48726678]
[1673857988723,0.06745193,1540.4,1540.3,25.97950678]
[1673857988935,0.06745193,1540.4,1540.3,31.21488246]
[1673857989286,0.06745193,1540.4,1540.3,18.23040246]
[1673857989457,0.06745193,1540.4,1540.3,12.99502678]
[1673857989661,0.06745193,1540.4,1540.3,19.48726678]
[1673857990001,0.06745193,1540.4,1540.3,25.97950678]
[1673857990328,0.06387638,1540.4,1540.3,25.97950678]
[1673857990710,0.06387638,1540.4,1540.3,22.97950678]
[1673857990905,0.06387638,1540.4,1540.3,27.91488246]
[1673857991136,0.06387638,1540.4,1540.3,21.42264246]
[1673857991377,0.06387638,1540.4,1540.3,27.91488246]
[1673857992167,0.06387638,1540.4,1540.3,21.42264246]
[1673857992700,0.06387638,1540.4,1540.3,27.91488246]
[1673857993524,0.00087638,1540.4,1540.3,35.67885968]
[1673857993950,0.00087638,1540.4,1540.3,38.17885968]
[1673857994160,0.00087638,1540.4,1540.3,33.41488246]
[1673857994924,0.00087638,1540.4,1540.3,30.91488246]
[1673857996212,0.00087638,1540.4,1540.3,33.41488246]
[1673857996989,0.00087638,1540.4,1540.3,30.91488246]
[1673857999061,0.00087638,1540.4,1540.3,24.42264246]
[1673858000219,0.00087638,1540.4,1540.3,30.91488246]
[1673858001935,0.00087638,1540.4,1540.3,33.41488246]
[1673858002110,0.00087638,1540.4,1540.3,30.89579946]
[1673858003385,0.00087638,1540.4,1540.3,19.46818378]
[1673858003777,0.00087638,1540.4,1540.3,25.96042378]
[1673858005196,0.00087638,1540.4,1540.3,25.76042378]
[1673858005409,0.00087638,1540.4,1540.3,19.26818378]
[1673858007354,0.00087638,1540.4,1540.3,25.76042378]
[1673858007560,0.00087638,1540.4,1540.3,9.77594378]
[1673858008230,0.00087638,1540.4,1540.3,16.26818378]
[1673858008438,0.00087638,1540.4,1540.3,22.76042378]
[1673858011722,0.92687638,1540.4,1540.3,22.76042378]
[1673858011881,0.92687638,1540.4,1540.3,3.05370378]
[1673858012232,1.01956402,1540.4,1540.3,3.05370378]
[1673858012450,0.09356402,1540.4,1540.3,3.05370378]
[1673858012755,0.00087638,1540.4,1540.3,16.03818378]
[1673858013290,0.00087638,1540.4,1540.3,22.53042378]
[1673858014009,0.00087638,1540.4,1540.3,22.76042378]
[1673858015647,0.00087638,1540.4,1540.3,25.76042378]
[1673858015916,0.00087638,1540.4,1540.3,28.58646616]
[1673858017225,0.00087638,1540.4,1540.3,36.86986616]
[1673858019793,0.00087638,1540.4,1540.3,37.28026616]
[1673858020229,0.00087638,1540.4,1540.3,37.27774945]
[1673858022850,0.00087638,1540.4,1540.3,36.86734945]
[1673858023447,0.00087638,1540.4,1540.3,37.35454945]
[1673858023654,0.00087638,1540.4,1540.3,36.86734945]
[1673858025653,0.00087638,1540.4,1540.3,17.39062945]
[1673858025880,0.00087638,1540.4,1540.3,36.86734945]
[1673858027650,0.00087638,1540.4,1540.3,36.63734945]
[1673858029105,0.00087638,1540.4,1540.3,36.86734945]
[1673858031362,0.00087638,1540.4,1540.3,33.81130707]
[1673858031587,0.03704148,1540.7,1540.3,33.81130707]
[1673858031750,0.52414148,1540.7,1540.4,6.27278678]
[1673858031970,0.52414148,1540.7,1540.5,3.27278678]
[1673858032291,0.52414148,1540.7,1540.6,3.27278678]
[1673858032696,0.52414148,1540.7,1540.1,17.07361]
[1673858032697,7.71612563,1540.7,1540.1,17.07361]
[1673858032912,8.36246481,1540.7,1540.2,3.27278678]
[1673858033150,8.36246481,1540.7,1540.3,3.27278678]
[1673858033343,8.36246481,1540.7,1540.4,3.27278678]
[1673858033517,0.83624648,1540.6,1540.4,3.27278678]
[1673858033728,0.4872,1540.5,1540.4,3.27278678]
[1673858036151,6.97859,1540.5,1540.1,6.4928]
[1673858036513,2.5,1540.4,1540.2,3.27278678]
[1673858036736,7.22944,1540.3,1539.9,6.49358]
[1673858036883,7.22944,1540.3,1540.0,3.27278678]
[1673858037226,13.72168,1540.3,1539.6,6.49517]
[1673858037438,20.86025918,1540.3,1539.7,3.27278678]
[1673858037613,6.49315,1540.1,1539.8,3.27278678]
[1673858037824,6.98045,1540.1,1539.9,3.27278678]
[1673858042463,0.4873,1540.1,1539.9,3.27278678]
[1673858042920,0.4873,1540.1,1540.0,3.27278678]
[1673858045320,0.491514,1540.2,1540.0,3.27278678]
[1673858047407,9.0060564,1540.2,1540.0,3.27278678]
[1673858047902,26.769,1540.5,1540.1,9.76586678]
[1673858048051,13.01420748,1540.7,1540.2,9.76518678]
[1673858048263,13.01420748,1540.7,1540.3,3.27278678]
[1673858048490,0.4872,1540.6,1540.4,3.27278678]
[1673858048878,0.64633918,1540.5,1540.1,0.23]
[1673858049087,5.70423228,1540.5,1540.1,3.27278678]
[1673858049358,13.471,1540.4,1540.1,3.27278678]
[1673858049720,14.11733918,1540.4,1540.1,3.27278678]
[1673858050663,7.62543918,1540.4,1540.1,3.27278678]
[1673858051347,0.004214,1540.3,1540.1,3.27278678]
[1673858051572,0.76717932,1540.3,1540.1,3.27278678]
[1673858052360,0.76717932,1540.3,1539.9,12.98741]
[1673858052667,20.8904185,1540.3,1540.0,3.27278678]
[1673858052924,0.4873,1540.2,1540.0,3.27278678]
[1673858053133,6.98005,1540.2,1540.0,3.27278678]
[1673858053821,0.4873,1540.2,1540.0,3.27278678]
[1673858054455,2.67455318,1540.1,1539.2,0.14680703]
[1673858054669,2.024,1539.5,1539.2,7.03e-06]
[1673858054924,19.97559,1539.4,1539.1,0.13833157]
[1673858055082,3.004214,1539.3,1539.1,0.13833157]
[1673858055481,0.4876,1539.2,1539.1,3.157e-05]
[1673858057446,1.13393918,1539.2,1539.1,3.157e-05]
[1673858058255,3.63393918,1539.2,1539.1,3.157e-05]
[1673858058492,6.63393918,1539.2,1539.1,3.157e-05]
[1673858059176,5.9876,1539.2,1539.1,3.157e-05]
[1673858059702,3.4876,1539.2,1539.1,3.157e-05]
[1673858060435,5.9876,1539.2,1539.1,3.157e-05]
[1673858060694,3.4876,1539.2,1539.1,3.157e-05]
[1673858061619,9.98448,1539.2,1539.1,3.157e-05]
[1673858062296,12.48448,1539.2,1539.1,3.157e-05]
[1673858062803,18.98136,1539.2,1539.1,3.157e-05]
[1673858062996,22.25414678,1539.2,1539.1,3.157e-05]
[1673858063704,18.98136,1539.2,1539.1,3.157e-05]
[1673858063903,9.49688,1539.2,1539.1,3.157e-05]
[1673858064118,6.49688,1539.2,1539.1,3.157e-05]
[1673858064958,6.500844,1539.3,1539.1,3.157e-05]
[1673858065165,14.73777,1539.6,1539.1,3.157e-05]
[1673858065429,19.0811,1539.6,1539.1,3.157e-05]
[1673858065641,19.0811,1539.6,1539.1,0.21363157]
[1673858065966,19.0811,1539.6,1539.2,0.23]
[1673858066148,21.72005,1539.7,1539.2,0.23]
[1673858066358,13.47755,1539.7,1539.2,0.23]
[1673858067196,8.9953,1539.6,1539.2,0.23]
[1673858067407,15.4906,1539.6,1539.1,3.157e-05]
[1673858068023,15.4906,1539.6,1539.1,0.23003157]
[1673858068214,15.4906,1539.6,1539.1,3.157e-05]
[1673858068900,0.004214,1539.5,1539.1,3.157e-05]
[1673858069070,6.49612,1539.4,1539.1,3.157e-05]
[1673858069417,15.64457918,1539.4,1539.1,3.157e-05]
[1673858069633,12.99376,1539.2,1539.1,3.157e-05]
[1673858070166,15.49376,1539.2,1539.1,3.157e-05]
[1673858072029,12.99376,1539.2,1539.1,3.157e-05]
[1673858072241,6.49688,1539.2,1539.1,3.157e-05]
[1673858072571,6.500914,1539.3,1539.1,3.27281835]
[1673858072942,6.98387,1539.4,1539.1,3.27281835]
[1673858073198,0.4875,1539.4,1539.2,3.27278678]
[1673858073359,6.49593,1539.5,1539.2,3.27278678]
[1673858073570,6.49593,1539.5,1539.1,0.32731341]
[1673858073571,0.4875,1539.6,1539.3,3.27278678]
[1673858073783,6.98233,1539.7,1539.4,3.27278678]
[1673858074270,6.49493,1539.7,1539.4,3.27278678]
[1673858074493,12.98986,1539.7,1539.1,0.32731341]
[1673858074704,12.98986,1539.7,1539.2,3.50278678]
[1673858075034,3.14633918,1539.6,1539.1,3.157e-05]
[1673858075194,3.63383918,1539.6,1539.1,3.27281835]
[1673858075548,2.5,1539.4,1539.1,3.157e-05]
[1673858075716,12.9929,1539.3,1539.1,3.157e-05]
[1673858075929,6.49645,1539.3,1539.1,3.157e-05]
[1673858076354,6.49635,1539.4,1539.2,3.27278678]
[1673858076995,16.13807918,1539.5,1539.2,3.27278678]
[1673858077327,6.49582,1539.5,1539.2,3.27278678]
[1673858077566,32.16635,1539.6,1539.2,3.27278678]
[1673858077698,12.99075,1539.6,1539.2,3.27278678]
[1673858078781,3.4875,1539.5,1539.2,3.27278678]
[1673858079117,6.49603,1539.4,1539.2,3.27278678]
[1673858079434,6.49603,1539.4,1539.1,3.157e-05]
[1673858079435,20.13442918,1539.4,1539.1,3.157e-05]
[1673858079740,1.13393918,1539.3,1539.1,3.157e-05]
[1673858079960,1.13393918,1539.3,1539.1,3.27281835]
[1673858080112,0.64633918,1539.3,1539.2,3.60006862]
[1673858080319,6.49603,1539.4,1539.2,3.60006862]
[1673858080637,6.49603,1539.4,1539.2,3.27278678]
[1673858081702,7.62947918,1539.5,1539.3,3.27278678]
[1673858082741,0.4875,1539.5,1539.4,3.27278678]
[1673858083132,6.49417,1539.9,1539.4,16.59212546]
[1673858083272,6.49417,1539.9,1539.5,3.50278678]
[1673858083484,6.49417,1539.9,1539.6,3.27278678]
[1673858083705,6.49417,1539.9,1539.7,3.27278678]
[1673858084249,0.64633918,1539.9,1539.7,3.27278678]
[1673858085211,20.12827918,1539.9,1539.5,0.23]
[1673858085425,20.12827918,1539.9,1539.6,3.27278678]
[1673858085579,20.61567918,1539.9,1539.5,0.23]
[1673858085787,20.61989318,1539.9,1539.3,8.1534]
[1673858086015,20.61989318,1539.9,1539.4,3.27278678]
[1673858086853,23.11989318,1539.9,1539.2,11.6219]
[1673858087051,0.64633918,1539.8,1539.3,3.27278678]
[1673858087261,19.48494,1539.7,1539.3,3.27278678]
[1673858087520,0.64633918,1539.8,1539.4,3.27278678]
[1673858087679,0.64633918,1539.6,1539.4,13.31898868]
[1673858087890,6.56123578,1540.0,1539.5,2.5]
[1673858087891,0.06750578,1540.0,1539.5,2.5]
[1673858088105,0.71384496,1540.0,1539.6,6.49498]
[1673858088890,0.71384496,1540.0,1539.7,3.50278678]
[1673858089105,0.71384496,1540.0,1539.8,3.27278678]
[1673858089466,0.71384496,1540.0,1539.9,3.27278678]
[1673858090946,0.71384496,1540.0,1539.7,0.23]
[1673858090947,7.20734496,1540.0,1539.7,0.23]
[1673858091156,20.19434496,1540.0,1539.7,3.27278678]
[1673858091490,20.19855896,1540.0,1539.7,3.27278678]
[1673858091678,1.20535896,1540.0,1539.8,3.27278678]
[1673858091897,1.20114496,1540.0,1539.9,3.27278678]
[1673858092225,0.71384496,1540.0,1539.9,3.27278678]
[1673858093611,0.71384496,1540.0,1539.6,0.23]
[1673858093818,20.19855896,1540.0,1539.7,3.27278678]
[1673858095154,14.12211918,1539.9,1539.7,3.27278678]
[1673858095364,13.63471918,1539.9,1539.7,3.27278678]
[1673858095603,0.64633918,1539.8,1539.7,3.27278678]
[1673858099993,0.64633918,1539.8,1539.7,4.47957446]
[1673858100205,0.64272288,1539.8,1539.7,4.47957446]
[1673858100621,0.64272288,1539.8,1539.7,10.97434446]
[1673858100866,0.64272288,1539.8,1539.7,23.96388446]
[1673858101044,0.06750578,1540.0,1539.7,23.96388446]
[1673858101250,0.06750578,1540.0,1539.8,12.39339523]
[1673858101251,0.71384496,1540.0,1539.8,12.39339523]
[1673858101500,0.71384496,1540.0,1539.9,3.27278678]
[1673858102089,7.20734496,1540.0,1539.5,18.34081]
[1673858102337,20.19434496,1540.0,1539.6,3.27278678]
[1673858102666,20.19434496,1540.0,1539.7,3.27278678]
[1673858103089,13.70084496,1540.0,1539.7,3.27278678]
[1673858104014,13.70084496,1540.0,1539.8,3.27278678]
[1673858104015,0.71384496,1540.0,1539.8,3.27278678]
[1673858104220,0.71384496,1540.0,1539.9,3.27278678]
[1673858104441,13.70084496,1540.0,1539.6,6.49478]
[1673858104608,13.70084496,1540.0,1539.7,3.27278678]
[1673858105870,0.71384496,1540.0,1539.8,3.27278678]
[1673858106080,0.71384496,1540.0,1539.6,12.98977]
[1673858106081,0.71384496,1540.0,1539.9,3.27278678]
[1673858107090,20.19434496,1540.0,1539.5,18.34067]
[1673858107242,20.19434496,1540.0,1539.6,3.27278678]
[1673858107445,20.19855896,1540.0,1539.7,3.27278678]
[1673858108023,20.68585896,1540.0,1539.7,3.27278678]
[1673858108962,14.18814496,1540.0,1539.7,3.27278678]
[1673858109172,0.64633918,1539.9,1539.7,3.27278678]
[1673858109402,0.64633918,1539.9,1539.7,4.24958146]
[1673858109552,0.64633918,1539.9,1539.8,3.27278678]
[1673858109761,0.06750578,1540.0,1539.8,3.50278678]
[1673858109978,0.06750578,1540.0,1539.9,3.27278678]
[1673858110227,0.06750578,1540.0,1539.9,4.92191246]
[1673858111444,0.06750578,1540.0,1539.9,24.63367246]
[1673858111649,0.06750578,1540.0,1539.9,27.13367246]
[1673858112014,0.06750578,1540.0,1539.9,32.12587948]
[1673858112231,0.06750578,1540.0,1539.9,43.58127948]
[1673858112650,0.06750578,1540.0,1539.9,38.58907246]
[1673858113152,0.06750578,1540.0,1539.9,38.90287246]
[1673858113367,0.06750578,1540.0,1539.9,38.58907246]
[1673858114064,0.06750578,1540.0,1539.9,36.08907246]
[1673858114278,0.06750578,1540.0,1539.9,14.72818678]
[1673858114694,0.06750578,1540.0,1539.9,27.71602678]
[1673858114910,0.06750578,1540.0,1539.9,34.20994678]
[1673858115175,0.06750578,1540.0,1539.9,14.72818678]
[1673858115343,0.06750578,1540.0,1539.9,3.27278678]
[1673858116398,0.06750578,1540.0,1539.9,4.78674245]
[1673858116837,0.06750578,1540.0,1539.9,11.51066245]
[1673858117791,0.06750578,1540.0,1539.9,5.01674245]
[1673858118897,0.06750578,1540.0,1539.9,11.51066245]
[1673858120608,0.06750578,1540.0,1539.9,22.21599658]
[1673858121051,0.06750578,1540.0,1539.9,35.20383658]
[1673858123276,0.06750578,1540.0,1539.9,28.70991658]
[1673858123610,0.06413658,1540.0,1539.9,28.70991658]
[1673858124298,0.06413658,1540.0,1539.9,37.70383658]
[1673858124502,0.06413658,1540.0,1539.9,40.70383658]
[1673858125388,0.06413658,1540.0,1539.9,29.99850245]
[1673858129077,0.00013658,1540.0,1539.9,34.99070947]
[1673858130136,0.00013658,1540.0,1539.9,29.99850245]
[1673858130295,0.00013658,1540.0,1539.9,27.49850245]
[1673858131184,0.00013658,1540.0,1539.9,29.99850245]
[1673858132282,0.00013658,1540.0,1539.9,30.48590245]
[1673858132513,0.00013658,1540.0,1539.9,35.47810947]
[1673858132718,0.06915231,1540.3,1540.1,25.97232]
[1673858133025,0.06915231,1540.3,1540.2,28.57799878]
[1673858134393,0.06915231,1540.3,1540.2,31.07799878]
[1673858134604,0.06915231,1540.3,1540.2,28.57799878]
[1673858138386,0.06915231,1540.3,1540.2,15.59267878]
[1673858138857,0.06915231,1540.3,1540.2,22.08533878]
[1673858139962,0.06915231,1540.3,1540.2,15.59267878]
[1673858141538,0.06915231,1540.3,1540.2,28.57799878]
[1673858142083,0.06915231,1540.3,1540.2,15.59267878]
[1673858142395,0.06915231,1540.3,1540.2,12.99544678]
[1673858142602,0.99515231,1540.3,1540.2,3.50278678]
[1673858143234,0.06915231,1540.3,1540.2,3.50278678]
[1673858144074,0.99515231,1540.3,1540.2,3.50278678]
[1673858144286,0.06915231,1540.3,1540.2,3.50278678]
[1673858146584,0.06915231,1540.3,1540.2,17.48768946]
[1673858146948,0.06915231,1540.3,1540.2,23.98034946]
[1673858151221,0.06915231,1540.3,1540.2,9.99544678]
[1673858152357,0.06915231,1540.3,1540.2,3.50278678]
[1673858153431,0.06530753,1540.3,1540.2,3.50278678]
[1673858154824,0.06530753,1540.3,1540.2,9.99544678]
[1673858154988,0.06530753,1540.3,1540.2,22.98076678]
[1673858155201,0.06530753,1540.3,1540.2,25.92812846]
[1673858155941,0.06530753,1540.3,1540.2,31.42812846]
[1673858156157,0.06530753,1540.3,1540.2,28.92812846]
[1673858161501,0.06530753,1540.3,1540.2,30.44212846]
[1673858162905,0.06530753,1540.3,1540.2,23.94946846]
[1673858163721,0.06530753,1540.3,1540.2,15.94280846]
[1673858163934,0.06530753,1540.3,1540.2,12.99544678]